Workbook

Sheet Индексы-дефляторы
A1: 1.139 | B1: 2002
A2: 1.103 | B2: 2003
A3: 1.152 | B3: 2004
A4: 1.137 | B4: 2005 | E4: 2020 | H4: 6918.904026 | I4: 2019 | M4: =SUMPRODUCT($A$14*$A$18) -> 1.227582
A5: 1.122 | B5: 2006 | H5: =E7-G7 -> -4.6892484 | I5: 15746.17264 | Q5: =INDEX(A1:B23,MATCH(COUNTIFS(B1:B23,"=>2015",B1:B23,"<=2019"),B1:B23),1) -> 
A6: 1.157 | B6: 2007 | E6: мой объект | G6: Объект-аналог
A7: 1.194 | B7: 2008 | E7: 130.2569 | G7: 134.9461484 | L7: =G7/L12 -> 0.04186973267 | P7: 68499.95 | Q7: =INDEX(A1:B23,SUMPRODUCT((B1:B23>=E4)*(B1:B23<=E17)),1) -> 1.139
A8: 1.0496 | B8: 2009 | T8: =PRODUCT(A14:A18) -> 1.434539946
A9: 1.0797 | B9: 2010 | R9: =SUMPRODUCT((B1:B23>=E4)*(B1:B23<=E17),A1:A23) -> 0 | T9: =IF(A1:A23>0,PRODUCT(--AND(--SUMPRODUCT((B1:B23>=E4)*(B1:B23<=E17),OFFSET(B1:B23,,-1))))) -> 0 | U9: =PRODUCT(ROWS(SUMPRODUCT((B1:B23>=E4)*(B1:B23<=E17)))) -> 1 | V9: =SUMPRODUCT((B1:B23>=E4)*(B1:B23<=E17),A1:A23*A1:A23) -> 0 | X9: =ROUND(G7,4) -> 134.9461
A10: 1.088 | B10: 2011 | R10: =COUNTIFS(B1:B23,">="&$E$4,B1:B23,"<="&$E$17) -> 0 | T10: =PRODUCT(A1:A23) -> 6.437089983 | U10: =IF(A1:A23>0,PRODUCT(AND(COUNTIFS(B1:B23,">="&$E$4,B1:B23,"<="&$E$17),OFFSET(B1:B23,,-1)))) -> 0
A11: 1.068 | B11: 2012 | E11: мощность | G11: мощность | R11: =SUMPRODUCT(COUNTIFS(B1:B23,">="&$E$4,B1:B23,"<="&$E$17)-COLUMN()) -> -18 | T11: =(A1:A23)*(A1:A23) -> 1.140624 | V11: =IF(COUNTIFS(B1:B23,">="&$E$4,B1:B23,"<="&$E$17)>0,PRODUCT(INDEX((B1:B23>=E4)*(B1:B23<=E17),A1:A23))) -> FALSE
A12: 1.06 | B12: 2013 | L12: 3223 | R12: =CHOOSE(1,A1,A2,A3) -> 1.139 | U12: =Ч -> 
A13: 1.05 | B13: 2014
A14: 1.143 | B14: 2015 | L14: 1740.1 | M14: 5 | P14: =G7/1249 -> 0.1080433534
A15: 1.063 | B15: 2016 | L15: =G7/L14 -> 0.07755080076 | P15: 122.5 | T15: =PRODUCT(IF(B1:B23>0,COUNTIFS(B1:B23,">="&$E$4,B1:B23,"<="&$E$17),A1:A23)) -> 0 | U15: =PRODUCT(COUNTIFS(B1:B23,">="&$E$4,B1:B23,"<="&$E$17),A1:A23) -> 0
A16: 1.044 | B16: 2017 | E16: Год утверждения | G16: 2020 | L16: =L15*1.073 -> 0.08321200921 | M16: =L15/1.093 -> 0.07095224223 | P16: =G7/P15 -> 1.101601211 | T16: =PRODUCT((B1:B23>=E4)*(B1:B23<=E17),OFFSET(B1:B23,,-1)) -> 0 | U16: =PRODUCT(1,A1:A23,(B1:B23>=E4)*(B1:B23<=E17)) -> 0
A17: 1.053 | B17: 2018 | E17: 2019 | T17: =PRODUCT(A1:A23,SUMPRODUCT((B1:B23>=E4)*(B1:B23<=E17))) -> 0
A18: 1.074 | B18: 2019 | T18: =PRODUCT(INDEX(A1:B23,COUNTIFS(B1:B23,">="&$E$4,B1:B23,"<="&$E$17),1)) -> 6.437089983
A19: 1.036 | B19: 2020 | T19: =PRODUCT(INDEX(A1:A23,(B1:B23>=E4)*(B1:B23<=E17),1)) -> 6.437089983
A20: 1.037 | B20: 2021 | P20: =PRODUCT(IF((B1:B23>=E4)*(B1:B23<=E17),OFFSET($A$1,1,0,23,1),1)) -> 1 | T20: =PRODUCT(INDEX((B1:B23>=E4)*(B1:B23<=E17)*(A1:A23),(B1:B23>=E4)*(B1:B23<=E17),1)) -> 0
A21: 1.037 | B21: 2022 | P21: =PRODUCT(IF((B1:B23>=E4)*(B1:B23<=E17),A1:A23*OFFSET($A$1,1,0,23,1),1)) -> 1 | T21: =PRODUCT((B1:B23>=E4)*(B1:B23<=E17)*(A1:A23),A1:A23) -> 0
A22: 1.038 | B22: 2023 | P22: =PRODUCT(IF((B1:B23>=E4)*(B1:B23<=E17),A1:A23,OFFSET($A$1,1,0,23,1)),1) -> 0 | T22: =PRODUCT(IF((B1:B23>=E4)*(B1:B23<=E17),A1:A23,1)) -> 1 | U22: УРАААА!!!!
A23: 1.038 | B23: 2024 | P23: =IF(E17>E4,PRODUCT(IF((B1:B23>=E4)*(B1:B23<=E17),OFFSET(A1,1,0,23,1)),1)) -> FALSE
A25: Доведены письмом Минэкономразвития России от | P25: ЕСЛИ(E17>E4;M14*ПРОИЗВЕД(ЕСЛИ((B1:B23>=E4)*(B1:B23<=E17);СМЕЩ(A1;1;0;23;1));M14/ПРОИЗВЕД(ЕСЛИ((B1:B23>=E4)*(B1:B23<=E17);СМЕЩ(A23;-1;0;23;1)))))
K27: из 14 в 19 | M27: =M14*A11*A12*A13 -> 5.94342 | P27: =IF(E17>E4,PRODUCT(IF((B1:B23>E4)*(B1:B23<=E17),A1:A23)),1) -> 1 | R27: =IF(E17>E4,M14*PRODUCT(IF((B1:B23>E4)*(B1:B23<=E17),A1:A23)),M14/PRODUCT(IF((B1:B23<=E4)*(B1:B23>E17),A1:A23))) -> 4.826254826
K29: из 19 в 14 | M29: =M14/A18/A17/A16/A15/A14 -> 3.485437971 | P29: =IF(E17>E4,PRODUCT(IF((B1:B23>E4)*(B1:B23<=E17),A1:A23)),PRODUCT(IF((B1:B23>=E4)*(B1:B23<E17),A1:A23))) -> 0
R30: =IF(E17>E4,M14*PRODUCT(IF((B1:B23>E4)*(B1:B23<=E17),A1:A23)),IF(E17<E4,M14/PRODUCT(IF((B1:B23<=E4)*(B1:B23>E17),A1:A23)),M14)) -> 4.826254826
E32: 12402.1 | P32: =PRODUCT(IF((B1:B23>=E4)*(B1:B23<=E17),$A$1:$A$23),1) -> 1
E33: 23824.7

Sheet SVOD
S16: СУММ(ИНДЕКС(BM34:DF34*($BM$32:$DF$32=$CP$23);;);ИНДЕКС(BM34:DF34;;ПОИСКПОЗ(CP23;BM32:DF32)+1)) | AE16: СУММ(ИНДЕКС(BM34:CD34*($BM$32:$CD$32=$CP$23);;);ИНДЕКС(BM34:CD34;;ПОИСКПОЗ(CP23;BM32:CD32)+1))
AS17: ЕСЛИ(CP23<=2017;СУММ(ИНДЕКС(BM34:CD34*($BM$32:$CD$32=$CP$23);;);ИНДЕКС(BM34:CD34;;ПОИСКПОЗ(CP23;BM32:CD32)+1));СУММ(ИНДЕКС(CE34:DF34*($CE$32:$DF$32=$CP$23);;);ИНДЕКС(CE34:DF34;;ПОИСКПОЗ($CP$23;$CE$32:$DF$32)+1);ИНДЕКС(CE34:DF34;;ПОИСКПОЗ($CP$23;$CE$32:$DF$32)+2);ИНДЕКС(CE34:DF34;;ПОИСКПОЗ($CP$23;$CE$32:$DF$32)+3)))
U20: =P34:BI34*(($P$33:$BI$33=$P$33)+($P$33:$BI$33=$Q$33))*($P$32:$BI$32=$AS$23)+($P$33:$BI$33=$Q$33) -> 0
AS22: 2021 | AT22: год по выбору
BC25: =MATCH(1,(AH33:BI33=AK33)*(#REF!<>0)) -> 
P26: формула вообще не работает | Q26: формула работает только пересчет в 2020 год
P27: =(IF((P34:BI34*($AS$22>$P$32:$BI$32)*($P$33:$BI$33=$P$33))>0,ROUND((($P$33:$BI$33=$P$33)*($P$34:$BI$34))*PRODUCT(IF(('Индексы-дефляторы'!$B$1:$B$23)>INDEX($P$33:$BI$33=$P$33,,MATCH(('Индексы-дефляторы'!$B$1:$B$23)>P32:BI32,P32:BI32))*('Индексы-дефляторы'!$B$1:$B$23<=$AS$22),'Индексы-дефляторы'!$A$1:$A$23)),1))) ->  | Q27: =(IF((P34:BI34*($AS$22>$P$32:$BI$32)*($P$33:$BI$33=$P$33))>0,ROUND((($P$33:$BI$33=$P$33)*($P$34:$BI$34))*(PRODUCT(IF(('Индексы-дефляторы'!$B$1:$B$23)>INDEX($P$32:$BI$32*($P$33:$BI$33=$P$33)*($P$34:$BI$34>0),,MATCH($P$32:$BI$32,$P$32:$BI$32))*('Индексы-дефляторы'!$B$1:$B$23<=$AS$22),'Индексы-дефляторы'!$A$1:$A$23))),1))) -> 297 | AT27: =IFERROR(INDEX($P34:$BI34*($P$33:$BI$33=$P$33:$Q$33),MATCH($AS$27,$M$34:$M$35),MATCH($AU$23,$P$32:$BI$32)),"") -> 
P28: (ЕСЛИ((BM34:DF34*($CP$22>$BM$32:$DF$32)*($BM$33:$DF$33=$BM$33))>0;ОКРУГЛ((($BM$33:$DF$33=$BM$33)*($BM$34:$DF$34))*ПРОИЗВЕД(ЕСЛИ(('Индексы-дефляторы'!$B$1:$B$23)>ИНДЕКС($BM$33:$DF$33=$BM$33;;ПОИСКПОЗ(('Индексы-дефляторы'!$B$1:$B$23)>BM32:DF32;BM32:DF32))*('Индексы-дефляторы'!$B$1:$B$23<=$CP$22);'Индексы-дефляторы'!$A$1:$A$23));1))) | Q28: (ЕСЛИ((BM34:DF34*($CP$22>$BM$32:$DF$32)*($BM$33:$DF$33=$BM$33))>0;ОКРУГЛ((($BM$33:$DF$33=$BM$33)*($BM$34:$DF$34))*(ПРОИЗВЕД(ЕСЛИ(('Индексы-дефляторы'!$B$1:$B$23)>ИНДЕКС($BM$32:$DF$32*($BM$33:$DF$33=$BM$33)*($BM$34:$DF$34>0);;ПОИСКПОЗ($BM$32:$DF$32;$BM$32:$DF$32))*('Индексы-дефляторы'!$B$1:$B$23<=$CP$22);'Индексы-дефляторы'!$A$1:$A$23)));1))) | AM28: =INDEX(($AH$33:$BI$33=$AK$33)*(#REF!),,) -> 
BB29: =INDEX(#REF!,,MATCH(AK33,AH33:BI33)) -> 
P30: правильная сумма пересчета из 2009 в 2021 | T30: правильная сумма пересчета из 2011 в 2021 | AO30: 2019 | AS30: 2020
P31: =(IF($AS$22>$P32,ROUND($P34*PRODUCT(IF(('Индексы-дефляторы'!$B$1:$B$23>$P32)*('Индексы-дефляторы'!$B$1:$B$23<=$AS$22),'Индексы-дефляторы'!$A$1:$A$23)),1))) -> 265.8 | R31: =(IF($AS$22>$R32,ROUND($R34*PRODUCT(IF(('Индексы-дефляторы'!$B$1:$B$23>$R32)*('Индексы-дефляторы'!$B$1:$B$23<=$AS$22),'Индексы-дефляторы'!$A$1:$A$23)),1))) -> 0 | T31: =(IF($AS$22>$T32,ROUND($T34*PRODUCT(IF(('Индексы-дефляторы'!$B$1:$B$23>$T32)*('Индексы-дефляторы'!$B$1:$B$23<=$AS$22),'Индексы-дефляторы'!$A$1:$A$23)),1))) -> 123108.2
P32: 2009 | R32: 2010 | T32: 2011 | V32: 2012 | X32: 2013 | Z32: 2014 | AB32: 2015 | AD32: 2016 | AF32: 2017 | AH32: 2018 | AL32: 2019 | AP32: 2020 | AT32: 2021 | AX32: 2022 | BB32: 2023 | BF32: 2024
P33: ПИР | Q33: СМР | R33: ПИР | S33: СМР | T33: ПИР | U33: СМР | V33: ПИР | W33: СМР | X33: ПИР | Y33: СМР | Z33: ПИР | AA33: СМР | AB33: ПИР | AC33: СМР | AD33: ПИР | AE33: СМР | AF33: ПИР | AG33: СМР | AH33: ПИР | AI33: СМР | AJ33: Восстановлены с 2017 | AK33: Сданы в ФБ | AL33: ПИР | AM33: СМР | AN33: Восстановлены с 2018 | AO33: Сданы в ФБ | AP33: ПИР | AQ33: СМР | AR33: Восстановлены с 2019 | AS33: Сданы в ФБ | AT33: ПИР | AU33: СМР | AV33: Восстановлены с 2020 | AW33: Сданы в ФБ | AX33: ПИР | AY33: СМР | AZ33: Восстановлены с 2021 | BA33: Сданы в ФБ | BB33: ПИР | BC33: СМР | BD33: Восстановлены с 2022 | BE33: Сданы в ФБ | BF33: ПИР | BG33: СМР | BH33: Восстановлены с 2023 | BI33: Сданы в ФБ | BL33: =SUMIFS(#REF!,$P$33:$BI$33,$Q$33)+SUMIFS(#REF!,$P$33:$BI$33,$P$33) -> 
M34: 1 | N34: 1 | P34: 123.5 | Q34: 65 | T34: 67200 | W34: 38400 | Y34: 100000 | AA34: 80725.7 | AC34: 655000 | AP34: 7740.6 | AU34: 138159.9 | BK34: =(IF($AS$22>$P32,ROUND($P34*PRODUCT(IF(('Индексы-дефляторы'!$B$1:$B$23>$P32)*('Индексы-дефляторы'!$B$1:$B$23<=$AS$22),'Индексы-дефляторы'!$A$1:$A$23)),1))) -> 265.8 | BN34: =IFERROR(SMALL(IF(($AH$33:$BI$33=$AK$33)*(AH34:BI34)<>0,OFFSET($AH$32:$BI$32,,-3)),1),"") -> 
M35: 2 | N35: 2 | P35: 12 | AB35: 16000 | AL35: 13924.1 | AQ35: 169063.8 | AU35: 178075.4 | AY35: 66697.3 | BC35: 0 | BG35: 0 | BN35: =IFERROR(SMALL(IF(($AH$33:$BI$33=$AK$33)*(AH35:BI35)<>0,OFFSET($AH$32:$BI$32,,-3)),1),"") -> 
